[Event "*** Titled Tuesday 3|2 Blitz (Late)"]
[Site "Chess.com"]
[Date "2016.11.01"]
[Round "8"]
[White "Rating-Schmating"]
[Black "calemcc"]
[Result "1-0"]
[WhiteElo "2248"]
[BlackElo "2206"]
[TimeControl "180+2"]
[EndTime "18:47:35 PDT"]
[Termination "Rating-Schmating won by checkmate"]

1. e4 {[%clk 0:03:01.9]} 1... e6 {[%clk 0:02:55.7]} 2. d4 {[%clk 0:03:02]} 2...
d5 {[%clk 0:02:57.6]} 3. Nd2 {[%clk 0:03:03]} 3... Nc6 {[%clk 0:02:56.4]} 4. c3
{[%clk 0:03:01.5]} 4... e5 {[%clk 0:02:57.1]} 5. exd5 {[%clk 0:03:02.6]} 5...
Qxd5 {[%clk 0:02:59]} 6. dxe5 {[%clk 0:02:47.7]} 6... Nxe5 {[%clk 0:02:59.1]} 7.
Qa4+ {[%clk 0:02:45.3]} 7... Bd7 {[%clk 0:02:52.9]} 8. Qe4 {[%clk 0:02:45.3]}
8... Nf6 {[%clk 0:02:52.5]} 9. Qxd5 {[%clk 0:02:45.3]} 9... Nxd5 {[%clk
0:02:54.4]} 10. Ngf3 {[%clk 0:02:45]} 10... Bd6 {[%clk 0:02:53.5]} 11. Nxe5
{[%clk 0:02:44.2]} 11... Bxe5 {[%clk 0:02:55.1]} 12. Nc4 {[%clk 0:02:45.1]}
12... Bf6 {[%clk 0:02:52.1]} 13. Ne3 {[%clk 0:02:45.8]} 13... Bc6 {[%clk
0:02:51.7]} 14. Bd2 {[%clk 0:02:41.4]} 14... O-O-O {[%clk 0:02:50.7]} 15. O-O-O
{[%clk 0:02:41]} 15... Nf4 {[%clk 0:02:49.5]} 16. f3 {[%clk 0:02:32.7]} 16...
Nd3+ {[%clk 0:02:39.1]} 17. Bxd3 {[%clk 0:02:30.9]} 17... Rxd3 {[%clk 0:02:41]}
18. Kc2 {[%clk 0:02:26.9]} 18... Rhd8 {[%clk 0:02:39.5]} 19. Ng4 {[%clk
0:02:16]} 19... Be7 {[%clk 0:02:22.7]} 20. Ne5 {[%clk 0:02:14.2]} 20... R3d5
{[%clk 0:01:57.8]} 21. Nxc6 {[%clk 0:02:10.1]} 21... bxc6 {[%clk 0:01:59.7]} 22.
Be3 {[%clk 0:02:08]} 22... Kb7 {[%clk 0:01:58.5]} 23. Rxd5 {[%clk 0:02:06.3]}
23... cxd5 {[%clk 0:01:59.1]} 24. Rd1 {[%clk 0:02:07.5]} 24... Bf6 {[%clk
0:01:55.9]} 25. Bd4 {[%clk 0:02:06.7]} 25... Bxd4 {[%clk 0:01:56.1]} 26. Rxd4
{[%clk 0:02:07.7]} 26... c6 {[%clk 0:01:57.5]} 27. c4 {[%clk 0:02:06.3]} 27...
Kb6 {[%clk 0:01:47.9]} 28. cxd5 {[%clk 0:01:58.6]} 28... Kc5 {[%clk 0:01:48.3]}
29. Rg4 {[%clk 0:01:54.6]} 29... g6 {[%clk 0:01:37.5]} 30. dxc6 {[%clk
0:01:54.7]} 30... Kxc6 {[%clk 0:01:38.1]} 31. Rc4+ {[%clk 0:01:52.3]} 31... Kb6
{[%clk 0:01:37.7]} 32. Re4 {[%clk 0:01:49.4]} 32... Rd7 {[%clk 0:01:38.8]} 33.
b4 {[%clk 0:01:47.8]} 33... Kb5 {[%clk 0:01:38.8]} 34. Kc3 {[%clk 0:01:45.4]}
34... a6 {[%clk 0:01:24.4]} 35. Re5+ {[%clk 0:01:45.6]} 35... Kb6 {[%clk
0:01:25.2]} 36. a4 {[%clk 0:01:44.3]} 36... Rc7+ {[%clk 0:01:23.9]} 37. Kd4
{[%clk 0:01:36.1]} 37... Rc1 {[%clk 0:01:21.7]} 38. Re7 {[%clk 0:01:31.6]} 38...
Rb1 {[%clk 0:01:21.5]} 39. Kc3 {[%clk 0:01:25.8]} 39... Rh1 {[%clk 0:01:12.6]}
40. h3 {[%clk 0:01:14.7]} 40... Rg1 {[%clk 0:01:11.7]} 41. Rxf7 {[%clk
0:01:10.5]} 41... Rxg2 {[%clk 0:01:06.7]} 42. Rxh7 {[%clk 0:01:11.6]} 42... Rg3
{[%clk 0:01:07.6]} 43. Rh6 {[%clk 0:01:06.7]} 43... Rxf3+ {[%clk 0:01:04.6]} 44.
Kc4 {[%clk 0:01:07.3]} 44... Rf4+ {[%clk 0:01:06.2]} 45. Kc3 {[%clk 0:01:06.4]}
45... Rf3+ {[%clk 0:01:07.5]} 46. Kd2 {[%clk 0:00:59.3]} 46... Rg3 {[%clk
0:01:06.9]} 47. h4 {[%clk 0:00:56.6]} 47... Kb7 {[%clk 0:01:04.8]} 48. Rh7+
{[%clk 0:00:53.1]} 48... Kb6 {[%clk 0:01:05.4]} 49. Rh6 {[%clk 0:00:53.4]} 49...
Kb7 {[%clk 0:01:06.7]} 50. Kc2 {[%clk 0:00:54.7]} 50... Rg4 {[%clk 0:01:02.6]}
51. Kc3 {[%clk 0:00:53.5]} 51... Rg3+ {[%clk 0:01:04]} 52. Kc4 {[%clk
0:00:54.9]} 52... Rg4+ {[%clk 0:01:05.5]} 53. Kc5 {[%clk 0:00:56.5]} 53... Rg1
{[%clk 0:01:05.6]} 54. Rh7+ {[%clk 0:00:57.7]} 54... Kb8 {[%clk 0:01:06.1]} 55.
Kb6 {[%clk 0:00:58.3]} 55... Rb1 {[%clk 0:01:07.1]} 56. Rh8# {[%clk 0:00:58.9]}
1-0

[Event "*** Titled Tuesday 3|2 Blitz (Late)"]
[Site "Chess.com"]
[Date "2016.11.01"]
[Round "8"]
[White "kereswasbest"]
[Black "Quiet_Desperation"]
[Result "0-1"]
[WhiteElo "2136"]
[BlackElo "2289"]
[TimeControl "180+2"]
[EndTime "18:47:38 PDT"]
[Termination "Quiet_Desperation won on time"]

1. d4 {[%clk 0:02:59]} 1... Nf6 {[%clk 0:03:00.9]} 2. c4 {[%clk 0:03:00.6]} 2...
e6 {[%clk 0:03:02.3]} 3. Nc3 {[%clk 0:02:59.4]} 3... Bb4 {[%clk 0:03:02.9]} 4.
e3 {[%clk 0:03:00.3]} 4... b6 {[%clk 0:03:03.8]} 5. Bd3 {[%clk 0:03:00.1]} 5...
O-O {[%clk 0:03:03.9]} 6. Ne2 {[%clk 0:03:00.4]} 6... Bb7 {[%clk 0:03:05.1]} 7.
O-O {[%clk 0:03:00.2]} 7... d5 {[%clk 0:03:06.3]} 8. a3 {[%clk 0:03:00.2]} 8...
Be7 {[%clk 0:03:07.2]} 9. f3 {[%clk 0:03:00.7]} 9... c5 {[%clk 0:03:07.6]} 10.
dxc5 {[%clk 0:02:58.3]} 10... bxc5 {[%clk 0:03:06]} 11. Rb1 {[%clk 0:02:50.7]}
11... Nbd7 {[%clk 0:03:05.8]} 12. b4 {[%clk 0:02:49]} 12... cxb4 {[%clk
0:03:06.6]} 13. axb4 {[%clk 0:02:44.7]} 13... dxc4 {[%clk 0:03:06]} 14. Bxc4
{[%clk 0:02:45.5]} 14... Rc8 {[%clk 0:03:06.9]} 15. Ba2 {[%clk 0:02:38.1]} 15...
Nb6 {[%clk 0:03:01]} 16. e4 {[%clk 0:02:34]} 16... Nc4 {[%clk 0:02:47.1]} 17.
Na4 {[%clk 0:02:17.2]} 17... Qc7 {[%clk 0:02:28.6]} 18. Qb3 {[%clk 0:01:45.1]}
18... Rfd8 {[%clk 0:02:16.5]} 19. Bf4 {[%clk 0:01:38.8]} 19... e5 {[%clk
0:02:14.9]} 20. Qxc4 {[%clk 0:01:33.2]} 20... Qxc4 {[%clk 0:02:14.5]} 21. Bxc4
{[%clk 0:01:32.1]} 21... exf4 {[%clk 0:02:14.7]} 22. Bb3 {[%clk 0:01:14.9]}
22... g5 {[%clk 0:02:02.3]} 23. Nc5 {[%clk 0:01:07.4]} 23... Bxc5+ {[%clk
0:02:00.1]} 24. bxc5 {[%clk 0:01:06.5]} 24... Ba6 {[%clk 0:02:01.4]} 25. Rfe1
{[%clk 0:01:03.6]} 25... Rxc5 {[%clk 0:01:58.3]} 26. h4 {[%clk 0:00:56.9]} 26...
h6 {[%clk 0:01:52.9]} 27. Ra1 {[%clk 0:00:43]} 27... Bxe2 {[%clk 0:01:34.4]} 28.
Rxe2 {[%clk 0:00:44.9]} 28... a5 {[%clk 0:01:33.7]} 29. Rea2 {[%clk 0:00:43.2]}
29... Ra8 {[%clk 0:01:33.3]} 30. Kf2 {[%clk 0:00:41.9]} 30... Nd7 {[%clk
0:01:27.6]} 31. Bd5 {[%clk 0:00:40.8]} 31... Ra7 {[%clk 0:01:27.8]} 32. Rb2
{[%clk 0:00:40]} 32... Ne5 {[%clk 0:01:27.8]} 33. Rb8+ {[%clk 0:00:38.2]} 33...
Kg7 {[%clk 0:01:28.2]} 34. hxg5 {[%clk 0:00:39.9]} 34... hxg5 {[%clk 0:01:29.2]}
35. Kg1 {[%clk 0:00:33.5]} 35... g4 {[%clk 0:01:22.6]} 36. Ra3 {[%clk 0:00:28]}
36... g3 {[%clk 0:01:08.4]} 37. Rb1 {[%clk 0:00:26.1]} 37... Rc2 {[%clk
0:00:52.4]} 38. Rba1 {[%clk 0:00:16.6]} 38... Rac7 {[%clk 0:00:51.1]} 39. Kf1
{[%clk 0:00:13.9]} 39... Rf2+ {[%clk 0:00:50.6]} 0-1

[Event "*** Titled Tuesday 3|2 Blitz (Late)"]
[Site "Chess.com"]
[Date "2016.11.01"]
[Round "8"]
[White "jk13"]
[Black "SwiftyMcBishop"]
[Result "1-0"]
[WhiteElo "2526"]
[BlackElo "2120"]
[TimeControl "180+2"]
[EndTime "18:47:39 PDT"]
[Termination "jk13 won by resignation"]

1. e4 {[%clk 0:03:02]} 1... c5 {[%clk 0:02:57.4]} 2. c3 {[%clk 0:03:02.7]} 2...
Nf6 {[%clk 0:02:57.2]} 3. e5 {[%clk 0:03:04]} 3... Nd5 {[%clk 0:02:51.2]} 4. Bc4
{[%clk 0:03:05.5]} 4... e6 {[%clk 0:02:51.8]} 5. Nf3 {[%clk 0:03:06.6]} 5... Nb6
{[%clk 0:02:52.1]} 6. Bb3 {[%clk 0:03:07.4]} 6... d6 {[%clk 0:02:53.2]} 7. exd6
{[%clk 0:03:09]} 7... Bxd6 {[%clk 0:02:53.9]} 8. O-O {[%clk 0:03:10.9]} 8... Nc6
{[%clk 0:02:55.1]} 9. d4 {[%clk 0:03:12.4]} 9... O-O {[%clk 0:02:52.1]} 10. dxc5
{[%clk 0:03:09.8]} 10... Bxc5 {[%clk 0:02:52.3]} 11. Qe2 {[%clk 0:03:11.7]}
11... Qc7 {[%clk 0:02:40.4]} 12. Nbd2 {[%clk 0:03:10.6]} 12... Be7 {[%clk
0:02:34.2]} 13. a4 {[%clk 0:03:07.4]} 13... Na5 {[%clk 0:02:31]} 14. Ba2 {[%clk
0:03:02.8]} 14... Nd5 {[%clk 0:02:28.3]} 15. Ne4 {[%clk 0:03:02.3]} 15... b6
{[%clk 0:02:13]} 16. Ng3 {[%clk 0:02:50.5]} 16... Nf6 {[%clk 0:02:06.9]} 17. Ne5
{[%clk 0:02:45.9]} 17... Nc6 {[%clk 0:02:03.5]} 18. Bf4 {[%clk 0:02:46.6]} 18...
Nxe5 {[%clk 0:02:01.1]} 19. Bxe5 {[%clk 0:02:47.6]} 19... Qc6 {[%clk 0:02:02.5]}
20. f4 {[%clk 0:02:40]} 20... Bb7 {[%clk 0:02:02.5]} 21. f5 {[%clk 0:02:41.3]}
21... Ng4 {[%clk 0:01:47.6]} 22. Bd4 {[%clk 0:02:37.4]} 22... e5 {[%clk
0:01:44.7]} 23. Nh5 {[%clk 0:02:13.8]} 23... exd4 {[%clk 0:01:30.7]} 24. Qxg4
{[%clk 0:02:13.8]} 24... Bf6 {[%clk 0:00:53.6]} 25. Bd5 {[%clk 0:02:07.8]} 25...
Qd6 {[%clk 0:00:27.6]} 26. Bxb7 {[%clk 0:02:05.4]} 26... Rab8 {[%clk 0:00:27]}
27. Bf3 {[%clk 0:01:52.7]} 27... dxc3 {[%clk 0:00:26.6]} 28. Nxf6+ {[%clk
0:01:52]} 28... Qxf6 {[%clk 0:00:27.5]} 29. bxc3 {[%clk 0:01:53.9]} 29... Qxc3
{[%clk 0:00:27.8]} 30. Rfc1 {[%clk 0:01:49.5]} 30... Qe3+ {[%clk 0:00:24.9]} 31.
Kh1 {[%clk 0:01:50.1]} 31... Rbc8 {[%clk 0:00:21.6]} 32. Re1 {[%clk 0:01:48.2]}
32... Qc3 {[%clk 0:00:19.5]} 33. h3 {[%clk 0:01:48.2]} 33... Rce8 {[%clk
0:00:17]} 34. Red1 {[%clk 0:01:44.7]} 34... Rd8 {[%clk 0:00:16.2]} 35. Rac1
{[%clk 0:01:45.1]} 35... Rxd1+ {[%clk 0:00:15.4]} 36. Rxd1 {[%clk 0:01:47]}
36... Qf6 {[%clk 0:00:13.6]} 37. Qf4 {[%clk 0:01:43.1]} 37... Rd8 {[%clk
0:00:10.3]} 38. Rxd8+ {[%clk 0:01:41.9]} 38... Qxd8 {[%clk 0:00:12.2]} 39. Qe4
{[%clk 0:01:34.2]} 39... g6 {[%clk 0:00:08.5]} 40. fxg6 {[%clk 0:01:34]} 40...
hxg6 {[%clk 0:00:10.4]} 41. Qa8 {[%clk 0:01:34.9]} 41... Qxa8 {[%clk 0:00:11.5]}
42. Bxa8 {[%clk 0:01:36.7]} 42... Kf8 {[%clk 0:00:09.8]} 43. Kg1 {[%clk
0:01:37.4]} 43... Ke7 {[%clk 0:00:11]} 44. Kf2 {[%clk 0:01:38.7]} 44... a6
{[%clk 0:00:12.2]} 45. Bb7 {[%clk 0:01:37.2]} 45... b5 {[%clk 0:00:11.2]} 46. a5
{[%clk 0:01:37.4]} 46... b4 {[%clk 0:00:08.6]} 47. Bxa6 {[%clk 0:01:39.3]} 47...
Kd7 {[%clk 0:00:10.2]} 48. Bc4 {[%clk 0:01:39.4]} 48... Kc7 {[%clk 0:00:11.5]}
49. Bxf7 {[%clk 0:01:39.8]} 49... g5 {[%clk 0:00:12.3]} 50. Kf3 {[%clk
0:01:39.7]} 50... Kb7 {[%clk 0:00:13.5]} 51. Bc4 {[%clk 0:01:40.1]} 51... Ka7
{[%clk 0:00:13.6]} 52. Kg4 {[%clk 0:01:40.7]} 52... b3 {[%clk 0:00:15.5]} 53.
Bxb3 {[%clk 0:01:41.4]} 53... Ka6 {[%clk 0:00:17.4]} 54. Kxg5 {[%clk 0:01:42.9]}
54... Kxa5 {[%clk 0:00:19.3]} 55. h4 {[%clk 0:01:44.5]} 55... Kb4 {[%clk
0:00:21.2]} 56. h5 {[%clk 0:01:45.1]} 56... Kc5 {[%clk 0:00:23.1]} 57. h6 {[%clk
0:01:46.8]} 57... Kd4 {[%clk 0:00:25]} 58. h7 {[%clk 0:01:48.6]} 58... Ke3
{[%clk 0:00:26.9]} 59. h8=Q {[%clk 0:01:50.4]} 59... Kf2 {[%clk 0:00:28.8]} 60.
Qe5 {[%clk 0:01:51.2]} 60... Kxg2 {[%clk 0:00:30.7]} 61. Kg4 {[%clk 0:01:52]}
61... Kf2 {[%clk 0:00:32.2]} 62. Qe4 {[%clk 0:01:51.6]} 1-0

[Event "*** Titled Tuesday 3|2 Blitz (Late)"]
[Site "Chess.com"]
[Date "2016.11.01"]
[Round "8"]
[White "Wilsonpalencia"]
[Black "Genghis_K"]
[Result "0-1"]
[WhiteElo "2402"]
[BlackElo "2683"]
[TimeControl "180+2"]
[EndTime "18:47:43 PDT"]
[Termination "Genghis_K won by resignation"]

1. e4 {[%clk 0:03:01.9]} 1... e5 {[%clk 0:02:56.4]} 2. Nf3 {[%clk 0:03:02.4]}
2... Nc6 {[%clk 0:02:58]} 3. d4 {[%clk 0:03:02.3]} 3... exd4 {[%clk 0:02:54.8]}
4. Nxd4 {[%clk 0:03:03]} 4... Bc5 {[%clk 0:02:56.2]} 5. Nb3 {[%clk 0:03:02.9]}
5... Bb4+ {[%clk 0:02:56.3]} 6. c3 {[%clk 0:03:03.2]} 6... Be7 {[%clk
0:02:57.9]} 7. Bf4 {[%clk 0:03:02.1]} 7... d6 {[%clk 0:02:54.8]} 8. Bd3 {[%clk
0:03:00.5]} 8... Bg5 {[%clk 0:02:51.1]} 9. Bg3 {[%clk 0:02:57.8]} 9... Nge7
{[%clk 0:02:48.7]} 10. O-O {[%clk 0:02:56.7]} 10... O-O {[%clk 0:02:46.8]} 11.
f4 {[%clk 0:02:55.8]} 11... Bh6 {[%clk 0:02:47.6]} 12. Na3 {[%clk 0:02:25]}
12... f5 {[%clk 0:02:48.1]} 13. exf5 {[%clk 0:02:22.9]} 13... Bxf5 {[%clk
0:02:49.4]} 14. Bxf5 {[%clk 0:02:18.5]} 14... Nxf5 {[%clk 0:02:50.8]} 15. Qf3
{[%clk 0:02:17.1]} 15... Kh8 {[%clk 0:02:51]} 16. Rae1 {[%clk 0:02:14.9]} 16...
Qd7 {[%clk 0:02:50.8]} 17. Bf2 {[%clk 0:02:10]} 17... Nfe7 {[%clk 0:02:44.5]}
18. Be3 {[%clk 0:02:04.5]} 18... Rf7 {[%clk 0:02:33.8]} 19. Nc2 {[%clk
0:01:58.5]} 19... Raf8 {[%clk 0:02:34]} 20. Qe4 {[%clk 0:01:55.4]} 20... Nf5
{[%clk 0:02:33.8]} 21. Bc1 {[%clk 0:01:52.6]} 21... d5 {[%clk 0:02:29.8]} 22.
Qe2 {[%clk 0:01:49.2]} 22... Nd6 {[%clk 0:02:28.5]} 23. Nc5 {[%clk 0:01:45]}
23... Qc8 {[%clk 0:02:27.1]} 24. Qe6 {[%clk 0:01:43.1]} 24... Qxe6 {[%clk
0:02:15.5]} 25. Nxe6 {[%clk 0:01:43.5]} 25... Rc8 {[%clk 0:02:12.3]} 26. g3
{[%clk 0:01:43.6]} 26... g6 {[%clk 0:02:09]} 27. Ned4 {[%clk 0:01:43.8]} 27...
Nxd4 {[%clk 0:02:08.6]} 28. Nxd4 {[%clk 0:01:44.4]} 28... Bg7 {[%clk 0:02:08.5]}
29. Ne6 {[%clk 0:01:44.2]} 29... c6 {[%clk 0:02:06.3]} 30. Be3 {[%clk
0:01:41.9]} 30... b6 {[%clk 0:02:06.1]} 31. Nxg7 {[%clk 0:01:39.3]} 31... Kxg7
{[%clk 0:02:06.4]} 32. Bd4+ {[%clk 0:01:40.8]} 32... Kg8 {[%clk 0:02:07.6]} 33.
Re6 {[%clk 0:01:40.6]} 33... Ne4 {[%clk 0:02:08.6]} 34. c4 {[%clk 0:01:36.4]}
34... Rd7 {[%clk 0:02:06.4]} 35. cxd5 {[%clk 0:01:36.1]} 35... cxd5 {[%clk
0:02:07.4]} 36. f5 {[%clk 0:01:36.1]} 36... gxf5 {[%clk 0:01:58.4]} 37. Rxf5
{[%clk 0:01:34.5]} 37... Rf8 {[%clk 0:01:59.7]} 38. Ree5 {[%clk 0:01:24.1]}
38... Rxf5 {[%clk 0:01:45.9]} 39. Rxf5 {[%clk 0:01:25.1]} 39... h6 {[%clk
0:01:46.4]} 40. h4 {[%clk 0:01:25.2]} 40... Nxg3 {[%clk 0:01:43.2]} 41. Re5
{[%clk 0:01:16.9]} 41... Kf7 {[%clk 0:01:40.8]} 42. Kf2 {[%clk 0:01:14.1]} 42...
Ne4+ {[%clk 0:01:41.7]} 43. Ke3 {[%clk 0:01:15.2]} 43... Re7 {[%clk 0:01:37.4]}
44. Rxd5 {[%clk 0:01:12.4]} 44... Nf6+ {[%clk 0:01:36.6]} 45. Re5 {[%clk
0:01:13.3]} 45... Ng4+ {[%clk 0:01:37.9]} 46. Kf4 {[%clk 0:01:14.3]} 46... Nxe5
{[%clk 0:01:39.4]} 47. Bxe5 {[%clk 0:01:15.6]} 47... Ke6 {[%clk 0:01:40.5]} 48.
Bb8 {[%clk 0:01:15.2]} 48... Rf7+ {[%clk 0:01:39.1]} 49. Kg4 {[%clk 0:01:16.5]}
49... a5 {[%clk 0:01:34.3]} 50. Bf4 {[%clk 0:01:14]} 50... h5+ {[%clk
0:01:34.7]} 51. Kg3 {[%clk 0:01:15]} 51... Kf5 {[%clk 0:01:35.2]} 52. Be3 {[%clk
0:01:13.5]} 52... Rf6 {[%clk 0:01:36.5]} 53. Bd4 {[%clk 0:01:13.9]} 53... Rd6
{[%clk 0:01:37.9]} 54. Bg1 {[%clk 0:01:11.7]} 54... Rd3+ {[%clk 0:01:37.1]} 55.
Kg2 {[%clk 0:01:12.8]} 55... Rd2+ {[%clk 0:01:38.5]} 0-1

[Event "*** Titled Tuesday 3|2 Blitz (Late)"]
[Site "Chess.com"]
[Date "2016.11.01"]
[Round "8"]
[White "platy3"]
[Black "TheSovietChess"]
[Result "1-0"]
[WhiteElo "2701"]
[BlackElo "2553"]
[TimeControl "180+2"]
[EndTime "18:47:45 PDT"]
[Termination "platy3 won by resignation"]

1. e4 {[%clk 0:03:02]} 1... c5 {[%clk 0:02:59.8]} 2. Nf3 {[%clk 0:03:03.2]} 2...
d6 {[%clk 0:03:01.7]} 3. d4 {[%clk 0:03:04.3]} 3... cxd4 {[%clk 0:03:01.7]} 4.
Nxd4 {[%clk 0:03:06.2]} 4... Nf6 {[%clk 0:03:03.2]} 5. Nc3 {[%clk 0:03:07.9]}
5... a6 {[%clk 0:03:01.3]} 6. h3 {[%clk 0:03:09.2]} 6... e6 {[%clk 0:03:02.7]}
7. g4 {[%clk 0:03:10]} 7... h6 {[%clk 0:03:02.3]} 8. Bg2 {[%clk 0:03:10.6]} 8...
Be7 {[%clk 0:03:02.7]} 9. f4 {[%clk 0:03:08.9]} 9... Qb6 {[%clk 0:03:02.4]} 10.
Nb3 {[%clk 0:02:51.6]} 10... Nfd7 {[%clk 0:03:02]} 11. h4 {[%clk 0:02:47.1]}
11... Bxh4+ {[%clk 0:02:11.6]} 12. Rxh4 {[%clk 0:02:39.2]} 12... Qg1+ {[%clk
0:02:11.2]} 13. Bf1 {[%clk 0:02:40.8]} 13... Qg3+ {[%clk 0:02:11.6]} 14. Ke2
{[%clk 0:02:35.6]} 14... Qxh4 {[%clk 0:02:12]} 15. Qxd6 {[%clk 0:02:15.8]} 15...
Nc6 {[%clk 0:02:12.2]} 16. Be3 {[%clk 0:02:11.6]} 16... Nf6 {[%clk 0:02:10.4]}
17. Bg2 {[%clk 0:02:01.4]} 17... Nxg4 {[%clk 0:02:10.5]} 18. Bc5 {[%clk
0:02:01.9]} 18... Bd7 {[%clk 0:01:54.2]} 19. Rh1 {[%clk 0:01:38.5]} 19... Qd8
{[%clk 0:01:45.2]} 20. e5 {[%clk 0:01:32]} 20... Ne7 {[%clk 0:01:45.9]} 21. Bxb7
{[%clk 0:01:27.2]} 21... Nf5 {[%clk 0:01:45.9]} 22. Qd3 {[%clk 0:01:17.6]} 22...
Rb8 {[%clk 0:01:40]} 23. Be4 {[%clk 0:01:18]} 23... Qc7 {[%clk 0:01:39.7]} 24.
Rd1 {[%clk 0:01:11.7]} 24... h5 {[%clk 0:01:37.9]} 25. Ke1 {[%clk 0:01:04.5]}
25... Rd8 {[%clk 0:01:37.3]} 26. Qxa6 {[%clk 0:00:59.7]} 26... Nge3 {[%clk
0:01:37.4]} 27. Rd2 {[%clk 0:00:54.6]} 27... Qb8 {[%clk 0:01:34]} 28. Bc6 {[%clk
0:00:45.4]} 28... h4 {[%clk 0:01:33.5]} 29. Ne4 {[%clk 0:00:43.7]} 29... h3
{[%clk 0:01:33.4]} 30. Rxd7 {[%clk 0:00:35]} 30... Rxd7 {[%clk 0:01:33.7]} 31.
Nd6+ {[%clk 0:00:36.6]} 31... Nxd6 {[%clk 0:01:33.9]} 32. Bxd6 {[%clk
0:00:38.5]} 32... h2 {[%clk 0:01:33.9]} 33. Bxb8 {[%clk 0:00:30.5]} 33... h1=Q+
{[%clk 0:01:33.4]} 34. Bxh1 {[%clk 0:00:29.1]} 34... Rxh1+ {[%clk 0:01:33.6]}
35. Ke2 {[%clk 0:00:24.5]} 35... Nf5 {[%clk 0:01:33.8]} 36. Nc5 {[%clk
0:00:25.6]} 36... Rh2+ {[%clk 0:01:33.8]} 37. Kf3 {[%clk 0:00:24.2]} 37... Rh3+
{[%clk 0:01:33.8]} 38. Kg2 {[%clk 0:00:16.2]} 38... Rg3+ {[%clk 0:01:33.9]} 39.
Kf2 {[%clk 0:00:17.8]} 39... Rd2+ {[%clk 0:01:34.1]} 40. Ke1 {[%clk 0:00:19.3]}
40... Rd8 {[%clk 0:01:34.1]} 41. Bd6 {[%clk 0:00:15.7]} 41... Nxd6 {[%clk
0:01:34.4]} 42. exd6 {[%clk 0:00:16.1]} 42... Kf8 {[%clk 0:01:34.8]} 43. Qb7
{[%clk 0:00:12.6]} 43... Re8 {[%clk 0:01:35.1]} 44. Nd7+ {[%clk 0:00:12.9]}
44... Kg8 {[%clk 0:01:35.1]} 45. Ne5 {[%clk 0:00:14.8]} 45... f6 {[%clk
0:01:35.9]} 46. Qf7+ {[%clk 0:00:14.6]} 46... Kh7 {[%clk 0:01:35.4]} 47. Qh5+
{[%clk 0:00:15.5]} 47... Kg8 {[%clk 0:01:35.9]} 48. Qxe8+ {[%clk 0:00:17.4]}
48... Kh7 {[%clk 0:01:37]} 49. Qg6+ {[%clk 0:00:18.4]} 49... Rxg6 {[%clk
0:01:37]} 50. Nxg6 {[%clk 0:00:20.3]} 50... Kxg6 {[%clk 0:01:38.9]} 51. d7
{[%clk 0:00:22.2]} 51... Kf5 {[%clk 0:01:39.8]} 52. d8=Q {[%clk 0:00:23.4]} 1-0

[Event "*** Titled Tuesday 3|2 Blitz (Late)"]
[Site "Chess.com"]
[Date "2016.11.01"]
[Round "8"]
[White "Jahonas"]
[Black "norwaytoadog"]
[Result "1-0"]
[WhiteElo "2147"]
[BlackElo "1971"]
[TimeControl "180+2"]
[EndTime "18:47:56 PDT"]
[Termination "Jahonas won on time"]

1. d4 {[%clk 0:03:02]} 1... Nf6 {[%clk 0:02:59.5]} 2. c4 {[%clk 0:03:01.9]} 2...
e6 {[%clk 0:03:00.3]} 3. Nf3 {[%clk 0:03:02.8]} 3... Bb4+ {[%clk 0:03:00.9]} 4.
Bd2 {[%clk 0:03:03.9]} 4... a5 {[%clk 0:03:01.6]} 5. a3 {[%clk 0:03:04.4]} 5...
Bxd2+ {[%clk 0:03:00.4]} 6. Nbxd2 {[%clk 0:03:05.5]} 6... d6 {[%clk 0:02:57.5]}
7. e3 {[%clk 0:03:06.4]} 7... Nc6 {[%clk 0:02:57.6]} 8. Be2 {[%clk 0:03:07.6]}
8... e5 {[%clk 0:02:56.5]} 9. dxe5 {[%clk 0:03:06.3]} 9... dxe5 {[%clk
0:02:56.5]} 10. O-O {[%clk 0:03:07.4]} 10... O-O {[%clk 0:02:57.1]} 11. Qc2
{[%clk 0:03:08.5]} 11... Qe7 {[%clk 0:02:57.6]} 12. Rad1 {[%clk 0:03:07.6]}
12... h6 {[%clk 0:02:47.7]} 13. Rfe1 {[%clk 0:02:38.7]} 13... Be6 {[%clk
0:02:44.5]} 14. h3 {[%clk 0:02:37.9]} 14... Nd7 {[%clk 0:02:36]} 15. Nb1 {[%clk
0:02:34.4]} 15... Nc5 {[%clk 0:02:27.3]} 16. Nc3 {[%clk 0:02:21.1]} 16... b6
{[%clk 0:01:53.9]} 17. Nd5 {[%clk 0:02:13.1]} 17... Bxd5 {[%clk 0:01:53.4]} 18.
cxd5 {[%clk 0:02:13.2]} 18... Nd8 {[%clk 0:01:44.6]} 19. Bb5 {[%clk 0:02:08.7]}
19... a4 {[%clk 0:01:38.2]} 20. Nd2 {[%clk 0:02:07.3]} 20... Ra5 {[%clk
0:01:23.3]} 21. Bc4 {[%clk 0:01:49.9]} 21... b5 {[%clk 0:01:22.9]} 22. Ba2
{[%clk 0:01:50.1]} 22... Ndb7 {[%clk 0:01:21.9]} 23. Ne4 {[%clk 0:01:48.2]}
23... Nxe4 {[%clk 0:01:18]} 24. Qxe4 {[%clk 0:01:48.8]} 24... Nd6 {[%clk
0:01:17.5]} 25. Qb4 {[%clk 0:01:46.9]} 25... Ra7 {[%clk 0:01:15]} 26. Rc1 {[%clk
0:01:47]} 26... Qg5 {[%clk 0:01:11.7]} 27. Rc5 {[%clk 0:01:37.7]} 27... f5
{[%clk 0:01:09.4]} 28. Rec1 {[%clk 0:01:36.5]} 28... Rf7 {[%clk 0:01:01]} 29.
Rxb5 {[%clk 0:01:14.7]} 29... f4 {[%clk 0:00:49.4]} 30. exf4 {[%clk 0:01:08.6]}
30... Rxf4 {[%clk 0:00:48.3]} 31. Rb8+ {[%clk 0:01:08.3]} 31... Kh7 {[%clk
0:00:45.3]} 32. Qc5 {[%clk 0:01:05.8]} 32... Ra6 {[%clk 0:00:14.8]} 33. Bb1+
{[%clk 0:01:03.3]} 33... e4 {[%clk 0:00:14.4]} 34. Qxc7 {[%clk 0:01:00.2]} 34...
Qxd5 {[%clk 0:00:09]} 35. Rb6 {[%clk 0:00:54]} 35... Rxb6 {[%clk 0:00:07.6]} 36.
Qxb6 {[%clk 0:00:54.8]} 36... Qd2 {[%clk 0:00:07]} 37. Qe3 {[%clk 0:00:53.9]}
37... Rxf2 {[%clk 0:00:04.2]} 38. Bxe4+ {[%clk 0:00:46.1]} 38... Nxe4 {[%clk
0:00:03.3]} 39. Qxe4+ {[%clk 0:00:47.3]} 1-0